fUSD/lending_fUSD_20251215
["ID","MTS","AMOUNT","RATE_DAILY","PERIOD"]
[398524568,1765786438947,-215.046579,0.00015717,2]
[398524570,1765786443669,-166.68871506,0.00015717,2]
[398524576,1765786457954,244.8327,0.00015631,2]
[398524577,1765786461322,1104.299631,0.00015638,2]
[398524580,1765786479124,151.0,0.00015714,2]
[398524581,1765786489961,166.688715,0.00015638,2]
[398524582,1765786490118,-6503.69143727,0.00015717,2]
[398524583,1765786491895,-10000.01,0.00015717,2]
[398524584,1765786492091,-10000.01,0.00015717,2]
[398524585,1765786492260,-10000.01,0.00015717,2]
[398524586,1765786492499,-10000.01,0.00015717,2]
[398524587,1765786497804,-221.0,0.00015717,2]
[398524588,1765786500380,-317.29061087,0.00015717,2]
[398524589,1765786503066,-160.09949067,0.00015716,2]
[398524590,1765786505207,-345.44110606,0.00015716,2]
[398524591,1765786508362,-244.32582589,0.00015716,2]
[398524592,1765786510627,-241.62848032,0.00015716,2]
[398524595,1765786512068,-195.0,0.00015716,2]
[398524596,1765786516605,250.0,0.00015629,2]
[398524597,1765786516866,221.0,0.00015638,2]
[398524598,1765786517795,-13.50509706,0.00015716,2]
[398524599,1765786517820,-300.0,0.00015716,2]
[398524600,1765786517848,-3.15490294,0.00015716,2]
[398524601,1765786520892,-195.0,0.00015716,2]
[398524602,1765786524472,-101.84509706,0.00015716,2]
[398524603,1765786524495,-265.93893534,0.00015716,2]
[398524604,1765786526652,-34.06106466,0.00015716,2]
[398524605,1765786526678,-255.24162605,0.00015717,2]
[398524606,1765786528620,-200.0,0.00015717,2]
[398524607,1765786533917,-300.0,0.00015717,2]
[398524608,1765786534879,-329.33997296,0.00015717,2]
[398524609,1765786536472,-281.0,0.00015717,2]
[398524612,1765786540707,-215.0738,0.00015717,2]
[398524614,1765786592879,150.09557627,0.00015617,2]
[398524615,1765786599665,151.0,0.00015714,2]
[398524617,1765786615909,197.23732867,0.00015617,2]
[398524618,1765786688681,317.29061087,0.00015616,2]
[398524630,1765786719503,151.0,0.00015714,2]
[398524632,1765786733469,1096.99,0.00015312,2]
[398524634,1765786746416,1000.0,0.00013699,2]
[398524643,1765786808221,-300.0,0.00015716,2]
[398524644,1765786808246,-1200.0,0.00015716,2]
[398524645,1765786808270,-300.0,0.00015716,2]
[398524646,1765786808294,-281.0,0.00015716,2]
[398524647,1765786808321,-250.0,0.00015716,2]
[398524652,1765786820936,-25000.0,0.00015717,2]
[398524653,1765786821777,-25000.0,0.00015717,2]
[398524654,1765786823789,150.09557626,0.00015617,2]
[398524655,1765786830086,-181.16415193,0.00015717,2]
[398524656,1765786830891,-71403.90442374,0.00015717,2]
[398524659,1765786831655,-247.71681192,0.00015717,2]
[398524660,1765786833637,-177.18112284,0.00015717,2]
[398524661,1765786835614,151.0,0.00015714,2]
[398524662,1765786836098,-24849.0,0.00015717,2]
[398524663,1765786836828,-364.51280722,0.00015717,2]
[398524664,1765786838822,-536.81979411,0.00015717,2]
[398524665,1765786843211,-548.02531198,0.00015717,2]
[398524666,1765786845739,-25000.0,0.00015717,2]
[398524669,1765786858630,10000.01,0.00015617,2]
[398524670,1765786858659,10000.01,0.00015617,2]
[398524671,1765786858688,10000.01,0.00015617,2]
[398524672,1765786858716,2892.7022,0.00015617,2]
[398524675,1765786875287,6146.14995007,0.00015617,2]
[398524676,1765786884385,3853.86004993,0.000156,2]
[398524677,1765786884414,10000.01,0.000156,2]
[398524678,1765786884444,10000.01,0.000156,2]
[398524679,1765786884473,10000.01,0.000156,2]
[398524680,1765786884503,6160.10995007,0.000156,2]
[398524683,1765786893092,1017.833,0.00015403,2]
[398524688,1765786907834,2692.99424588,0.00015617,2]
[398524690,1765786925971,129.07280405,0.00015637,2]
[398524691,1765786926012,1958.38590795,0.00015637,2]
[398524695,1765786927097,-300.0,0.00015716,2]
[398524696,1765786927121,-8.21279958,0.00015716,2]
[398524699,1765786928049,792.20900834,0.000156,2]
[398524702,1765786933777,-452.51228467,0.00015716,2]
[398524703,1765786936569,-39.27491575,0.00015716,2]
[398524704,1765786936598,-212.36612348,0.00015716,2]
[398524705,1765786938173,-200.0,0.00015716,2]
[398524706,1765786940914,-87.63387652,0.00015716,2]
[398524707,1765786940937,-189.55129878,0.00015716,2]
[398524708,1765786942624,-166.66,0.00015716,2]
[398524709,1765786946259,-143.78870122,0.00015716,2]
[398524710,1765786946286,-244.31269064,0.00015717,2]
[398524711,1765786946650,500.0,0.00015616,2]
[398524712,1765786947310,-267.29421302,0.00015717,2]
[398524713,1765786956082,151.0,0.00015714,2]
[398524716,1765786973705,4522.7,0.00015252,2]
[398524722,1765786991903,228.75,0.00015252,2]
[398524732,1765787010466,-300.0,0.00015716,2]
[398524733,1765787010493,-31.39797434,0.00015717,2]
[398524734,1765787012703,-178.48883473,0.00015717,2]
[398524735,1765787014227,-291.3869778,0.00015717,2]
[398524736,1765787015937,1000.0,0.00015617,2]
[398524737,1765787016324,-180.46754864,0.00015717,2]
[398524738,1765787017860,-157.7742949,0.00015717,2]
[398524739,1765787018990,846.96508371,0.00015715,2]
[398524740,1765787019019,1653.03491629,0.00015715,2]
[398524741,1765787023220,713.6138,0.00015617,2]
[398524742,1765787023359,-300.0,0.00015717,2]
[398524743,1765787025474,-235.26532127,0.00015717,2]
[398524744,1765787027548,-288.7187326,0.00015717,2]
[398524745,1765787029524,-320.91701328,0.00015717,2]
[398524746,1765787031107,-215.58206913,0.00015717,2]
[398524747,1765787036771,-200.0,0.00015717,2]
[398524748,1765787039616,5525.0,0.000157,3]
[398524749,1765787040647,-222.80537899,0.00015717,2]
[398524750,1765787042698,-300.0,0.00015716,2]
[398524751,1765787042726,-91.45805862,0.00015717,2]
[398524760,1765787046074,-258.88652014,0.00015717,2]
[398524763,1765787050378,-298.65693306,0.00015717,2]
[398524764,1765787052025,-300.0,0.00015717,2]
[398524765,1765787054056,-521.61843486,0.00015717,2]
[398524766,1765787055001,151.0,0.00015714,2]
[398524767,1765787057087,-219.44061888,0.00015717,2]
[398524769,1765787058547,-195.0,0.00015717,2]
[398524770,1765787062175,-206.07094626,0.00015717,2]
[398524771,1765787067831,-194.16924576,0.00015717,2]
[398524773,1765787069452,-284.85854198,0.00015717,2]
[398524774,1765787071385,-154.14062291,0.00015717,2]
[398524782,1765787074773,-261.31862545,0.00015716,2]
[398524783,1765787078265,-288.32770075,0.00015716,2]
[398524784,1765787079761,-155.86221199,0.00015716,2]
[398524785,1765787082951,-249.24996732,0.00015716,2]
[398524786,1765787087536,-143.24149449,0.00015716,2]
[398524787,1765787087558,-137.31788663,0.00015716,2]
[398524788,1765787089319,-303.33634501,0.00015716,2]
[398524790,1765787100442,-199.30150151,0.00015716,2]
[398524791,1765787101323,1200.0,0.00015715,2]
[398524792,1765787101463,300.0,0.00015715,2]
[398524793,1765787102004,-186.75322715,0.00015716,2]
[398524794,1765787103500,-271.2910397,0.00015716,2]
[398524795,1765787103522,-152.41552863,0.00015716,2]
[398524796,1765787105479,-195.0,0.00015716,2]
[398524804,1765787108155,-648.06580512,0.00015716,2]
[398524808,1765787109679,-102.51866625,0.00015716,2]
[398524809,1765787109705,-174.47450186,0.00015716,2]
[398524812,1765787115193,-197.7872548,0.00015716,2]
[398524813,1765787117811,-320.93184327,0.00015716,2]
[398524814,1765787119787,-182.65867697,0.00015716,2]
[398524815,1765787121913,-152.78513759,0.00015716,2]
[398524816,1765787128007,-69.36258551,0.00015716,2]
[398524817,1765787128034,-129.77719499,0.00015716,2]
[398524818,1765787131338,-187.31380806,0.00015716,2]
[398524819,1765787131975,150.0,0.00015288,2]
[398524820,1765787132020,150.0,0.00015571,2]
[398524821,1765787132629,150.0,0.00015288,2]
[398524822,1765787132717,150.0,0.00015571,2]
[398524823,1765787132814,5525.0,0.000156,5]
[398524824,1765787133655,-188.44959368,0.00015716,2]
[398524825,1765787133685,-177.55040632,0.00015717,2]
[398524826,1765787133759,150.0,0.00015288,2]
[398524827,1765787133799,150.0,0.00015712,2]
[398524828,1765787135003,-166.66,0.00015717,2]
[398524829,1765787136860,-280.0,0.00015717,2]
[398524830,1765787137961,150.0,0.00015288,2]
[398524843,1765787140582,150.0,0.0001553,2]
[398524844,1765787140649,6957.06,0.00015153,2]
[398524845,1765787140764,150.0,0.00015288,2]
[398524846,1765787140815,150.0,0.000155,2]
[398524847,1765787140853,150.0,0.00015712,2]
[398524848,1765787140897,-315.36467634,0.00015717,2]
[398524854,1765787143119,150.0,0.00015288,2]
[398524855,1765787143157,150.0,0.0001553,2]
[398524858,1765787144487,150.0,0.00015288,2]
[398524859,1765787145737,-173.52947433,0.00015717,2]
[398524860,1765787147263,-174.36309255,0.00015717,2]
[398524867,1765787153314,150.0,0.00015288,2]
[398524868,1765787153370,150.0,0.00015288,2]
[398524869,1765787153422,151.9773931,0.00015288,2]
[398524870,1765787153479,151.7757916,0.00015288,2]
[398524871,1765787155708,150.0,0.00015288,2]
[398524872,1765787158573,150.0,0.00015288,2]
[398524873,1765787158630,150.0,0.00015571,2]
[398524874,1765787160105,154.88813698,0.00015659,2]
[398524875,1765787166470,4271.4235655,0.00011,2]
[398524876,1765787167102,195.0,0.00014782,2]
[398524877,1765787167806,3551.016145,0.00015638,2]
[398524896,1765787179909,1852.42,0.0001507,2]
[398524904,1765787188481,151.0,0.00015714,2]
[398524907,1765787192081,-164.77840951,0.00015716,2]
[398524933,1765787262976,-471.67391984,0.00015716,2]
[398524934,1765787264638,-102.07396441,0.00015716,2]
[398524935,1765787264662,-58.41162179,0.00015716,2]
[398524936,1765787266205,-266.73534782,0.00015716,2]
[398524937,1765787270058,-154.83865845,0.00015716,2]
[398524938,1765787271155,-46.24588911,0.00015716,2]
[398524939,1765787271179,-300.0,0.00015716,2]
[398524940,1765787271201,-114.87548493,0.00015716,2]
[398524941,1765787273793,-163.75449751,0.00015716,2]
[398524942,1765787275946,-155.58129497,0.00015716,2]
[398524943,1765787277491,-75.50035477,0.00015716,2]
[398524944,1765787277518,-274.01865407,0.00015717,2]
[398524946,1765787282729,-284.67298346,0.00015717,2]
[398524947,1765787284387,-236.16323085,0.00015717,2]
[398524948,1765787285812,-159.51406417,0.00015717,2]
[398524953,1765787289075,-500.0,0.00015716,2]
[398524954,1765787289101,-244.97466669,0.00015717,2]
[398524955,1765787289916,1000.0,0.000135,2]
[398524956,1765787292348,-302.50275351,0.00015717,2]
[398524957,1765787295903,-154.91520239,0.00015717,2]
[398524959,1765787297465,-152.37446444,0.00015717,2]
[398524965,1765787299620,-281.2323833,0.00015716,2]
[398524967,1765787300501,3244.13120838,0.00015,2]
[398524968,1765787301134,-361.8782281,0.00015716,2]
[398524969,1765787303226,-243.79913167,0.00015716,2]
[398524972,1765787307875,-291.76302965,0.00015716,2]
[398524973,1765787310856,-184.47280074,0.00015716,2]
[398524975,1765787312362,-341.59177984,0.00015716,2]
[398524976,1765787313820,-198.67438707,0.00015716,2]
[398524978,1765787317078,-216.59765971,0.00015716,2]
[398524979,1765787321700,-347.10463053,0.00015716,2]
[398524980,1765787321805,843.69754822,0.00015,2]
[398524981,1765787321877,364912.3062,0.00015617,2]
[398524982,1765787323530,-164.8728054,0.00015716,2]
[398524988,1765787351600,151.0,0.00015714,2]
[398524989,1765787353486,-532.28,0.00015716,2]
[398524990,1765787355611,-647.64361531,0.00015716,2]
[398524991,1765787360238,-379.32662888,0.00015716,2]
[398525002,1765787397771,5531.534955,0.00015617,2]
[398525003,1765787401453,1200.0,0.00015715,2]
[398525014,1765787432119,-999.0,0.00015716,2]
[398525016,1765787432130,-4112.76,0.00015716,2]
[398525019,1765787432185,-449.34485448,0.00015716,2]
[398525020,1765787432197,-3441.66248502,0.00015716,2]
[398525021,1765787432207,-300.0,0.00015716,2]
[398525022,1765787432217,-300.0,0.00015716,2]
[398525023,1765787432226,-261.0,0.00015716,2]
[398525024,1765787432236,-195.0,0.00015717,2]
[398525025,1765787432246,-12252.20921502,0.00015717,2]
[398525026,1765787432314,-1921.90677008,0.00015717,2]
[398525027,1765787432325,-5832.0625039,0.00015717,2]
[398525028,1765787432335,-39187.1506393,0.00015717,2]
[398525029,1765787432349,-40576.80266469,0.00015717,2]
[398525030,1765787432363,-26556.01337912,0.00015717,2]
[398525031,1765787432378,-7295.67390159,0.00015717,2]
[398525032,1765787432391,-30295.16433192,0.00015717,2]
[398525038,1765787432534,-16.98505026,0.00015717,2]
[398525039,1765787438230,-34560.80240765,0.00015717,2]
[398525040,1765787438295,-328.31959918,0.00015717,2]
[398525041,1765787438363,-10818.54046119,0.00015717,2]
[398525042,1765787438373,-200.0,0.00015717,2]
[398525043,1765787438383,-177541.6252864,0.00015717,2]
[398525044,1765787438393,-3077.9232452,0.00015717,2]
[398525045,1765787438403,-200.0,0.00015717,2]
[398525046,1765787438412,-5531.53495499,0.0001576,2]
[398525047,1765787438422,-150.0,0.00015773,2]
[398525048,1765787438432,-150.0,0.00015773,2]
[398525050,1765787438442,-150.0,0.00015854,2]
[398525052,1765787438451,-150.0,0.00015854,2]
[398525053,1765787438460,-150.0,0.00015854,2]
[398525054,1765787438471,-200.0,0.00015874,2]
[398525055,1765787438480,-1620.07,0.00015879,2]
[398525056,1765787438490,-150.0,0.0001589,2]
[398525057,1765787438500,-500.0,0.0001589,2]
[398525058,1765787438510,-500.0,0.0001589,2]
[398525059,1765787438519,-300.0,0.00015896,2]
[398525060,1765787438529,-1502.0,0.00015896,2]
[398525061,1765787438539,-312.51145641,0.00015896,2]
[398525062,1765787438549,-5531.53495499,0.00015902,2]
[398525063,1765787438560,-168.0,0.00015914,2]
[398525064,1765787438569,-500.0,0.00015916,2]
[398525065,1765787438579,-509.07268938,0.00015916,2]
[398525066,1765787438589,-421.06907438,0.00015916,2]
[398525067,1765787438599,-3645.28727979,0.00015916,2]
[398525068,1765787438609,-769.28838628,0.00015919,2]
[398525069,1765787438619,-150.0,0.00015925,2]
[398525070,1765787438628,-2135.0,0.00015973,2]
[398525071,1765787438637,-200.0,0.0001598,2]
[398525072,1765787438647,-574.12855637,0.0001598,2]
[398525073,1765787438656,-151.0,0.00015987,2]
[398525074,1765787438666,-151.0,0.00015987,2]
[398525075,1765787438676,-53311.52347873,0.0001599,2]
[398525076,1765787438687,-5761.97616399,0.0001599,2]
[398525077,1765787438698,-964.0942,0.0001599,2]
[398525078,1765787440244,-335.06597839,0.0001599,2]
[398525079,1765787440256,-380.30947352,0.0001599,2]
[398525080,1765787440310,-8618.95339952,0.0001599,2]
[398525081,1765787440322,-8947.21879473,0.0001599,2]
[398525082,1765787440335,-8943.78386462,0.0001599,2]
[398525083,1765787440350,-9077.54866152,0.0001599,2]
[398525084,1765787440361,-8943.84023489,0.0001599,2]
[398525085,1765787440372,-1271645.70770289,0.0001599,2]
[398525086,1765787440382,-168.0,0.00015997,2]
[398525087,1765787440392,-151.0,0.00015997,2]
[398525088,1765787440401,-22533.29408226,0.00016,2]
[398525089,1765787440411,-350848.74500621,0.00016,4]
[398525090,1765787440421,-150.0,0.00016016,2]
[398525091,1765787440430,-150.0,0.00016016,2]
[398525092,1765787440440,-500.0,0.00016016,2]
[398525093,1765787440449,-500.0,0.00016016,2]
[398525094,1765787440459,-153.0,0.00016023,2]
[398525095,1765787440468,-150.0,0.00016027,2]
[398525096,1765787440477,-500.0,0.00016027,2]
[398525097,1765787440487,-500.0,0.00016027,2]
[398525098,1765787440499,-200.0,0.00016033,2]
[398525099,1765787440508,-5531.53495499,0.00016045,2]
[398525100,1765787440517,-168.0,0.0001605,2]
[398525101,1765787440527,-150.0,0.000161,2]
[398525102,1765787440537,-3645.28727979,0.00016113,2]
[398525103,1765787440546,-150.0,0.00016137,2]
[398525104,1765787440556,-150.0,0.00016137,2]
[398525105,1765787440565,-150.0,0.00016137,2]
[398525106,1765787440575,-150.0,0.00016137,2]
[398525107,1765787440585,-150.0,0.00016137,2]
[398525108,1765787440595,-150.0,0.00016137,2]
[398525109,1765787440604,-150.0,0.00016137,2]
[398525110,1765787440614,-150.0,0.00016137,2]
[398525111,1765787440624,-150.0,0.00016137,2]
[398525112,1765787440633,-168.0,0.0001614,2]
[398525113,1765787440643,-500.0,0.00016164,2]
[398525114,1765787440653,-235.98261687,0.00016164,2]
[398525115,1765787440663,-500.0,0.00016164,2]
[398525116,1765787440674,-500.0,0.00016164,2]
[398525117,1765787440683,-150.0,0.00016164,2]
[398525118,1765787440693,-150.0,0.00016164,2]
[398525119,1765787440702,-150.0,0.00016164,2]
[398525120,1765787440712,-150.0,0.00016164,2]
[398525121,1765787440721,-500.0,0.00016164,2]
[398525122,1765787440731,-1257.0,0.00016164,2]
[398525123,1765787440740,-150.0,0.00016164,2]
[398525124,1765787440749,-556.0,0.00016164,2]
[398525125,1765787440759,-150.0,0.00016164,2]
[398525126,1765787440769,-500.0,0.00016164,2]
[398525127,1765787440778,-500.0,0.00016164,2]
[398525128,1765787440787,-295.32469408,0.00016164,2]
[398525129,1765787440797,-150.0,0.00016164,2]
[398525130,1765787440807,-703.99,0.00016164,2]
[398525131,1765787440816,-500.0,0.00016164,2]
[398525132,1765787440826,-5531.53495499,0.00016187,2]
[398525133,1765787440835,-720.78,0.000162,2]
[398525134,1765787440844,-66536.84602043,0.000162,5]
[398525135,1765787440854,-168.0,0.00016237,2]
[398525136,1765787440863,-150.0,0.00016258,2]
[398525137,1765787440873,-150.0,0.00016258,2]
[398525138,1765787440883,-500.0,0.00016274,2]
[398525139,1765787440892,-965.92,0.000163,2]
[398525141,1765787440902,-703.86,0.000163,2]
[398525143,1765787440910,-500.0,0.00016301,2]
[398525145,1765787440921,-500.0,0.00016301,2]
[398525147,1765787440931,-500.0,0.00016301,2]
[398525148,1765787440940,-200.0,0.00016301,2]
[398525149,1765787440950,-150.0,0.00016301,2]
[398525150,1765787440959,-150.0,0.00016301,2]
[398525151,1765787440968,-500.0,0.00016301,2]
[398525152,1765787440978,-1257.0,0.00016301,2]
[398525153,1765787440987,-200.0,0.00016301,2]
[398525154,1765787440996,-556.0,0.00016301,2]
[398525155,1765787441006,-150.0,0.00016301,2]
[398525156,1765787441016,-500.0,0.00016301,2]
[398525157,1765787441025,-500.0,0.00016301,2]
[398525158,1765787441035,-150.0,0.00016301,2]
[398525159,1765787441043,-211.14,0.00016305,2]
[398525160,1765787441053,-3645.28727979,0.0001631,2]
[398525161,1765787441063,-166.89,0.00016313,2]
[398525162,1765787441072,-5531.53495499,0.0001633,2]
[398525163,1765787441081,-150.0,0.00016349,2]
[398525164,1765787441090,-1098.0,0.00016358,2]
[398525165,1765787441099,-500.0,0.00016398,2]
[398525166,1765787441109,-500.0,0.00016398,2]
[398525167,1765787441118,-500.0,0.00016398,2]
[398525168,1765787441128,-500.0,0.00016398,2]
[398525169,1765787441137,-10142.58992082,0.000164,2]
[398525170,1765787441146,-421.06907438,0.00016413,2]
[398525171,1765787441155,-150.0,0.0001642,2]
[398525172,1765787441164,-150.0,0.0001642,2]
[398525173,1765787441173,-150.0,0.0001642,2]
[398525174,1765787441183,-95253.8309867,0.00016428,2]
[398525175,1765787441192,-500.0,0.00016438,2]
[398525176,1765787441201,-500.0,0.00016438,2]
[398525177,1765787441211,-500.0,0.00016438,2]
[398525178,1765787441220,-150.0,0.00016438,2]
[398525179,1765787441229,-150.0,0.00016438,2]
[398525180,1765787441238,-500.0,0.00016438,2]
[398525181,1765787441247,-1257.0,0.00016438,2]
[398525182,1765787441256,-556.0,0.00016438,2]
[398525183,1765787441266,-150.0,0.00016438,2]
[398525184,1765787441274,-500.0,0.00016438,2]
[398525185,1765787441284,-500.0,0.00016438,2]
[398525186,1765787441294,-150.0,0.00016438,2]
[398525187,1765787441303,-500.0,0.00016438,2]
[398525188,1765787441312,-500.0,0.00016438,2]
[398525189,1765787441323,-272.84521117,0.00016438,2]
[398525190,1765787441333,-1457.41,0.00016438,2]
[398525191,1765787441342,-500.0,0.00016438,2]
[398525192,1765787441355,-500.0,0.00016438,2]
[398525193,1765787441364,-500.0,0.00016438,2]
[398525194,1765787441373,-500.0,0.00016438,2]
[398525195,1765787441382,-500.0,0.00016438,2]
[398525196,1765787441393,-500.0,0.00016438,2]
[398525197,1765787441403,-500.0,0.00016438,2]
[398525198,1765787441412,-500.0,0.00016438,2]
[398525199,1765787441425,-500.0,0.00016438,2]
[398525200,1765787441435,-500.0,0.00016438,2]
[398525201,1765787441444,-500.0,0.00016438,2]
[398525202,1765787441453,-500.0,0.00016438,2]
[398525203,1765787441463,-500.0,0.00016438,2]
[398525204,1765787441473,-500.0,0.00016438,2]
[398525205,1765787441482,-500.0,0.00016438,2]
[398525206,1765787441492,-500.0,0.00016438,2]
[398525207,1765787441502,-500.0,0.00016438,2]
[398525208,1765787441511,-500.0,0.00016438,2]
[398525209,1765787441521,-500.0,0.00016438,2]
[398525210,1765787441530,-500.0,0.00016438,2]
[398525211,1765787441540,-500.0,0.00016438,2]
[398525212,1765787441549,-160.73707445,0.00016438,2]
[398525213,1765787441559,-500.0,0.00016438,2]
[398525214,1765787441568,-500.0,0.00016438,2]
[398525215,1765787441578,-500.0,0.00016438,2]
[398525216,1765787441587,-500.0,0.00016438,2]
[398525217,1765787441596,-500.0,0.00016438,2]
[398525218,1765787441608,-500.0,0.00016438,2]
[398525219,1765787441618,-500.0,0.00016438,2]
[398525220,1765787441628,-500.0,0.00016438,2]
[398525221,1765787441637,-500.0,0.00016438,2]
[398525222,1765787441646,-500.0,0.00016438,2]
[398525223,1765787441655,-500.0,0.00016438,2]
[398525224,1765787441666,-500.0,0.00016438,2]
[398525225,1765787441675,-500.0,0.00016438,2]
[398525226,1765787441686,-500.0,0.00016438,2]
[398525227,1765787441695,-500.0,0.00016438,2]
[398525228,1765787441706,-500.0,0.00016438,2]
[398525229,1765787441717,-500.0,0.00016438,2]
[398525230,1765787441726,-500.0,0.00016438,2]
[398525231,1765787441736,-500.0,0.00016438,2]
[398525232,1765787441745,-500.0,0.00016438,2]
[398525233,1765787441754,-500.0,0.00016438,2]
[398525234,1765787441763,-500.0,0.00016438,2]
[398525235,1765787441773,-500.0,0.00016438,2]
[398525236,1765787441782,-500.0,0.00016438,2]
[398525237,1765787441791,-566.07370745,0.00016438,2]
[398525238,1765787441800,-500.0,0.00016438,2]
[398525239,1765787441809,-500.0,0.00016438,2]
[398525240,1765787441818,-500.0,0.00016438,2]
[398525241,1765787441827,-589.76,0.00016438,2]
[398525242,1765787441836,-589.76,0.00016438,2]
[398525243,1765787441846,-589.76,0.00016438,2]
[398525244,1765787441855,-589.76,0.00016438,2]
[398525245,1765787441864,-589.76,0.00016438,2]
[398525246,1765787441873,-589.76,0.00016438,2]
[398525247,1765787441883,-589.76,0.00016438,2]
[398525248,1765787441892,-589.76,0.00016438,2]
[398525249,1765787441901,-589.76,0.00016438,2]
[398525250,1765787441910,-589.76,0.00016438,2]
[398525251,1765787441920,-600.0,0.00016438,2]
[398525252,1765787441929,-150.0,0.00016438,2]
[398525253,1765787441938,-150.0,0.00016438,2]
[398525254,1765787441947,-150.0,0.00016438,2]
[398525255,1765787441956,-150.0,0.00016438,2]
[398525256,1765787441966,-150.0,0.00016438,2]
[398525257,1765787441975,-300.0,0.00016438,2]
[398525258,1765787441986,-1217.27,0.00016438,2]
[398525259,1765787441995,-1502.0,0.00016444,2]
[398525260,1765787442006,-5531.53495499,0.00016472,2]
[398525261,1765787442015,-250.0,0.00016477,2]
[398525262,1765787442025,-500.0,0.00016499,2]
[398525263,1765787442034,-150.0,0.00016501,2]
[398525264,1765787442043,-150.0,0.00016501,2]
[398525265,1765787442052,-3645.28727979,0.00016506,2]
[398525266,1765787442062,-595.37131296,0.00016528,2]
[398525267,1765787442071,-185.0,0.00016538,2]
[398525268,1765787442080,-168.0,0.00016556,2]
[398525269,1765787442089,-150.0,0.00016562,2]
[398525270,1765787442098,-150.0,0.00016562,2]
[398525271,1765787442107,-500.0,0.00016575,2]
[398525272,1765787442116,-500.0,0.00016575,2]
[398525273,1765787442125,-500.0,0.00016575,2]
[398525274,1765787442135,-150.0,0.00016575,2]
[398525275,1765787442144,-218.95227974,0.00016575,2]
[398525276,1765787442154,-500.0,0.00016575,2]
[398525277,1765787442165,-1257.0,0.00016575,2]
[398525278,1765787442174,-556.0,0.00016575,2]
[398525279,1765787442183,-150.0,0.00016575,2]
[398525280,1765787442192,-500.0,0.00016575,2]
[398525281,1765787442202,-500.0,0.00016575,2]
[398525282,1765787442211,-254.21306055,0.00016575,2]
[398525283,1765787442220,-500.0,0.00016575,2]
[398525284,1765787442229,-1000.0,0.000166,2]
[398525285,1765787442239,-5531.53495499,0.00016615,2]
[398525286,1765787442249,-435.35903091,0.0001666,2]
[398525287,1765787442259,-150.0,0.00016699,2]
[398525288,1765787442268,-151.37295936,0.00016699,2]
[398525289,1765787442279,-500.0,0.00016699,2]
[398525290,1765787442289,-150.0,0.00016699,2]
[398525291,1765787442299,-150.69967865,0.00016699,2]
[398525292,1765787442309,-153.30440339,0.00016699,2]
[398525293,1765787442320,-500.0,0.00016699,2]
[398525294,1765787442331,-150.0,0.00016699,2]
[398525295,1765787442340,-150.0,0.00016699,2]
[398525296,1765787442350,-150.0,0.00016699,2]
[398525297,1765787442359,-150.0,0.00016699,2]
[398525298,1765787442368,-194.54123214,0.000167,2]
[398525299,1765787442378,-150.0,0.00016703,2]
[398525300,1765787442387,-150.0,0.00016703,2]
[398525301,1765787442396,-150.0,0.00016703,2]
[398525302,1765787442406,-3645.28727979,0.00016703,2]
[398525303,1765787442416,-500.0,0.00016712,2]
[398525304,1765787442425,-500.0,0.00016712,2]
[398525305,1765787442434,-500.0,0.00016712,2]
[398525306,1765787442444,-150.0,0.00016712,2]